Cogmind - Beta 16.1 @@@ ROGUE MODE // 2026.03.03 @ 23:06:52 Player: Anting Result: Self-destructed Performance ------------- Evolutions (2) 1000 Regions Visited (3) 600 Robots Destroyed (45) 225 Value Destroyed (1057) 1057 Prototype IDs (15) 300 Alien Tech Used (0) 0 Bonus (245) 245 TOTAL SCORE: 3427 Bonus ------- Follower Combat Kills 245 Cogmind --------- Core Integrity 407/550 Matter 270/300 Energy 280/280 System Corruption 0% Temperature Cool (0) Movement Treading (200) Ox1 Location -8/Materials Parts ------- > --- POWER (1) -------- Heavy Ion Engine > --- PROPULSION (2) --- Light Treads > --- UTILITY (3) ------ Large Storage Unit > --- WEAPON (5) ------- (None) > --- INVENTORY (15) --- Light Treads Advanced Treads Carbon-fiber Leg Heat Sink Advanced Heat Sink Melee Analysis Suite System Shield Light EM Pulse Cannon Light EM Pulse Cannon Subdweller Beam Cannon Subdweller Beam Cannon Battle Rifle Advanced EMP Blaster Katana Peak State ------------ > --- POWER ------------ Heavy Ion Engine > --- PROPULSION ------- Light Treads Light Treads > --- UTILITY ---------- Large Storage Unit Seismic Detector Light Armor Plating > --- WEAPON ----------- 1B-0RG's Assimilator > --- INVENTORY -------- Advanced Treads Carbon-fiber Leg Heat Sink Advanced Heat Sink Melee Analysis Suite System Shield Light EM Pulse Cannon Light EM Pulse Cannon Subdweller Beam Cannon Subdweller Beam Cannon Battle Rifle Katana [Rating: 76] Favorites ----------- Power Heavy Ion Engine Engine Heavy Ion Engine Propulsion Aluminum Leg Treads Spiked Treads Leg Aluminum Leg Utility Medium Storage Unit Device Seismic Detector Storage Medium Storage Unit Protection Light Armor Plating Weapon Light EM Pulse Cannon Energy Gun Medium Laser Energy Cannon Light EM Pulse Cannon Ballistic Gun Assault Rifle Special Melee Weapon 1B-0RG's Assimilator Build | -11 -10 -10 -8 ------- Run | Yrd Mat Sub Mat Slots Evolved 4 | . . . 4 Power . | . . . . Propulsion . | . . . . Utility 1 | . . . 1 Weapon 3 | . . . 3 Parts Attached 26 | 7 10 6 3 Power 2 | 1 1 . . Engine 2 | 1 1 . . Core . | . . . . Reactor . | . . . . Propulsion 10 | 2 3 5 . Treads 4 | . . 4 . Leg 6 | 2 3 1 . Wheel . | . . . . Hover . | . . . . Flight . | . . . . Utility 6 | 2 2 . 2 Device 1 | 1 . . . Storage 3 | 1 1 . 1 Processor . | . . . . Hackware . | . . . . Protection 2 | . 1 . 1 Artifact . | . . . . Weapon 8 | 2 4 1 1 Energy Gun 1 | 1 . . . Energy Cannon 4 | . 3 1 . Ballistic Gun 2 | 1 1 . . Ballistic Cannon . | . . . . Launcher . | . . . . Special Weapon . | . . . . Impact Weapon . | . . . . Slashing Weapon . | . . . . Piercing Weapon . | . . . . Special Melee Weapon 1 | . . . 1 Unidentified Prototypes 2 | . 1 . 1 Parts Lost 7 | . 2 2 3 Power . | . . . . Propulsion 2 | . 1 1 . Utility 2 | . . . 2 Weapon 3 | . 1 1 1 Highest Loss Streak 3 | . 1 1 3 To Critical Strikes . | . . . . Average Backups 9 | 3 9 9 8 Power . | . . . . Propulsion 2 | 1 2 2 1 Utility 3 | . 2 3 2 Weapon 3 | . 3 2 5 Tool/Special . | . . . . Unused Backups 16 | . 3 2 11 Power 3 | . 2 1 . Propulsion 2 | . . . 2 Utility 5 | . . 1 4 Weapon 6 | . 1 . 5 Tool/Special . | . . . . Average Slot Usage (%) 96 | . 99 99 63 Engine 13 | . 14 14 9 Treads 10 | . . 13 18 Leg 16 | . 27 14 . Device 7 | . 13 5 8 Storage 13 | . 14 14 9 Protection 6 | . . 8 8 Energy Cannon 22 | . 14 28 5 Ballistic Gun 3 | . 12 . . Peak Build Rating 76 | 7 12 18 76 Average Rating 15 | 5 10 13 53 On Entrance 9 | . 7 12 18 Avg Prop Armor Cover (%) 5 | . . 5 . Naked Turns . | . . . . Heaviest Build 87 | 15 27 29 87 Greatest Support 40 | 20 20 40 40 Greatest Overweight (x) 2 | . 2 1 2 Average Overweight (x) . | . . . . Largest Inventory Capacity 15 | 8 10 10 15 Average Capacity 10 | 7 9 10 13 Most Carried 14 | 4 10 10 14 Average Carried 9 | 3 9 9 10 Final Capacity 15 | 8 10 10 15 Final Carried 14 | 4 10 10 14 Class Distribution -------------------- 100% | Mutant Dominant Class ---------------- Mutant | -10/Materials Mutant | -10/Subcaves Mutant | -8/Materials Resources | -11 -10 -10 -8 ----------- Run | Yrd Mat Sub Mat Matter Collected 1133 | 291 272 110 460 Remotely . | . . . . Salvage Created 1490 | 75 876 539 . Parts 88 | 5 52 31 . Haulers Intercepted 2 | . 2 . . Recyclers Shooed . | . . . . Parts Field Recycled . | . . . . Retrieved Matter . | . . . . Parts Self-Destructed 16 | . . 16 . Prevented 1 | . . 1 . Parts Restored . | . . . . Kills | -11 -10 -10 -8 ------- Run | Yrd Mat Sub Mat Combat Hostiles Destroyed 35 | . 23 12 . Guns 8 | . 8 . . Cannons 20 | . 11 9 . AOE 3 | . 3 . . Classes Destroyed 8 | 1 6 1 . Tunneler 3 | 3 . . . Hauler 2 | . 2 . . Mechanic 1 | . 1 . . Operator 1 | . 1 . . Watcher 3 | . 3 . . Swarmer 14 | . 12 2 . Grunt 13 | . 11 2 . Subdweller 8 | . . 8 . Best Kill Streak 5 | 2 5 2 . Combat Bots Only 5 | . 5 2 . Max Kills in Single Turn 2 | 1 2 1 . Gunslinging . | . . . . Exploded 2 | . 2 . . Melee . | . . . . Uniques/NPCs Destroyed . | . . . . Combat | -11 -10 -10 -8 -------- Run | Yrd Mat Sub Mat Hostile Shots Fired 140 | . 73 42 25 Missed 34 | . 17 12 5 Hits 106 | . 56 30 20 Projectile 106 | . 56 30 20 Critical Strikes 6 | . 1 2 3 Damage Taken 1633 | . 566 513 554 Core 313 | . 69 101 143 Absorbed by Shields . | . . . . Regen/Repaired (Parts) 129 | . 90 . 39 Core Remaining (%) 66 | 100 . 32 . Volleys Fired 105 | 7 65 33 . Largest 2 | 2 2 2 . Hottest 112 | 70 112 112 . Shots Fired 209 | 14 130 65 . Gun 80 | 14 66 . . Cannon 129 | . 64 65 . Launcher . | . . . . Special . | . . . . Kinetic 70 | 7 63 . . Thermal 10 | 7 3 . . Explosive . | . . . . Electromagnetic 129 | . 64 65 . Robot Hit Streak 22 | 4 8 22 . Robot Miss Streak 9 | 2 9 4 . Penetration Max . | . . . . Secondary Targets 1 | . 1 . . Max Gunslinging Chain 1 | . 1 . . Shots Hit Robots 118 | 8 65 45 . Core Hits 56 | 4 36 16 . Critical Kills 1 | . 1 . . Critical Parts Destroyed . | . . . . Critical Strikes 6 | 2 3 1 . Burn 2 | 2 . . . Destroy 1 | . 1 . . Corrupt 3 | . 2 1 . Melee Attacks . | . . . . Impact . | . . . . Slashing . | . . . . Piercing . | . . . . Sneak Attacks . | . . . . Combat Hostiles . | . . . . Follow-up Attacks . | . . . . Damage Inflicted 2264 | 113 1279 872 . Guns 471 | 113 358 . . Cannons 1621 | . 749 872 . Explosions 146 | . 146 . . Melee . | . . . . Ramming 26 | . 26 . . Kinetic 408 | 63 345 . . Thermal 209 | 50 159 . . Explosive . | . . . . Electromagnetic 1621 | . 749 872 . Impact . | . . . . Slashing . | . . . . Piercing . | . . . . Highest Corruption . | . . . . Average Corruption . | . . . . Corruption Purged . | . . . . Corruption Blocked . | . . . . Overload Shots . | . . . . Overflow Damage 19 | . 19 . . Projectiles 18 | . 18 . . Explosions 1 | . 1 . . Melee . | . . . . Knockbacks . | . . . . Impact . | . . . . Kinetic . | . . . . Secondary . | . . . . Self-Inflicted Damage 60 | . 60 . . Shots 2 | . 2 . . Rammed . | . . . . Targets Rammed 8 | . 8 . . Kicked 8 | . 8 . . Crushed . | . . . . Highest Temperature 323 | 45 323 36 . Average Temperature 57 | 19 71 13 . Received Heat Transfer 381 | . 138 126 117 Effects 1 | . 1 . . Energy Bleed 1 | . 1 . . Siege Activations . | . . . . Martial Activations . | . . . . Shielding Activations . | . . . . Robots Disrupted . | . . . . Combat Hostiles . | . . . . Robots Corrupted 4 | . 1 3 . Combat Hostiles 4 | . 1 3 . Parts Fried 15 | . 4 11 . Impact Corruptions . | . . . . Robots Melted . | . . . . Combat Hostiles . | . . . . Parts Melted 1 | 1 . . . Heat Transferred 483 | 296 187 . . Parts Sabotaged . | . . . . Parts Stolen . | . . . . Parts Stripped . | . . . . Power Chain Reactions 2 | . 2 . . Alert | -11 -10 -10 -8 ------- Run | Yrd Mat Sub Mat Maximum Alert Level 1 | . 1 . . Low Security (%) 72 | 100 61 . 100 Level 1 27 | . 38 . . Level 2 . | . . . . Level 3 . | . . . . Level 4 . | . . . . Level 5 . | . . . . High Security . | . . . . Max Security . | . . . . Peak Influence 268 | 5 268 . 92 Initial 1 | . . . 1 Average 110 | . 146 . 22 Influence Increases 1202 | 15 741 180 266 Destroy 0b10 Robot/C 680 | . 460 80 140 Destroy 0b10 Robot/NC 55 | 15 35 . 5 Destroy Leader 122 | . 80 10 32 Allied During Kill 22 | . . . 22 Successful Hack 13 | . 6 . 7 Select Force Hacks 60 | . 60 . . Disable Machine 60 | . 45 . 15 Destroy Structure 10 | . 10 . . Lose Combat Pursuer 180 | . 45 90 45 Influence Decreases 1202 | 15 516 402 269 Entered New Map 111 | . . 109 2 Time Decay 923 | 15 496 293 119 Lost Part 33 | . 20 . 13 Lost Ally 135 | . . . 135 Squads Dispatched 9 | . 3 . 6 Investigation 3 | . 2 . 1 Extermination . | . . . . Reinforcement 4 | . 1 . 3 Assault 2 | . . . 2 Garrison . | . . . . Intercept . | . . . . Searches Triggered . | . . . . Construction Impeded . | . . . . Haulers Reinforced . | . . . . Active Scanning Responses . | . . . . Cargo Convoy Interrupts . | . . . . Stealth | -11 -10 -10 -8 --------- Run | Yrd Mat Sub Mat Distress Signals 5 | . 1 . 4 Communications Jammed . | . . . . Distress Signals . | . . . . Times Spotted 73 | . 36 16 21 Peak Tracking Total 4 | . 4 4 4 Tactical Retreats 9 | . 3 3 3 Traps | -11 -10 -10 -8 ------- Run | Yrd Mat Sub Mat Traps Triggered 2 | . . 1 1 Indirectly . | . . . . Trap Hack Attempts . | . . . . Triggered . | . . . . Disarmed . | . . . . Reprogrammed . | . . . . Reused . | . . . . Traps Extracted . | . . . . Installed . | . . . . Triggered . | . . . . Machines | -11 -10 -10 -8 ---------- Run | Yrd Mat Sub Mat Machines Disabled 4 | . 3 . 1 Max in Single Turn 1 | . 1 . . Garrison Access 1 | . . . 1 Machines Repaired . | . . . . Machines Dismantled . | . . . . Machines Sabotaged . | . . . . Overloaded Fab Kills . | . . . . Hacking | -11 -10 -10 -8 --------- Run | Yrd Mat Sub Mat Machines Accessed 11 | . 7 2 2 Terminals 5 | . 4 . 1 Fabricators . | . . . . Repair Stations 1 | . 1 . . Recycling Units 2 | . 2 . . Scanalyzers 1 | . . . 1 Garrison Access . | . . . . Total Hacks 28 | . 18 6 4 Successful 19 | . 11 6 2 Failed 8 | . 7 . 1 Catastrophic 1 | . 1 . . Database Lockouts 1 | . . . 1 Manual 16 | . 14 . 2 Terminals 14 | . 12 . 2 Fabricators . | . . . . Repair Stations 4 | . 4 . . Recycling Units 2 | . 2 . . Scanalyzers 2 | . . . 2 Garrison Access . | . . . . Terminal Hacks 6 | . . 6 . Record 5 | . . 5 . Proto ID Catalog 1 | . . 1 . Fabricator Hacks . | . . . . Repair Station Hacks 4 | . 4 . . Scan Component 2 | . 2 . . Repair 2 | . 2 . . Recycling Unit Hacks . | . . . . Scanalyzer 1 | . . . 1 Retrieve Study 1 | . . . 1 Garrison Access Hacks . | . . . . Unauthorized Hacks 8 | . 7 . 1 Terminals 6 | . 5 . 1 Botnet 1 | . 1 . . Disrupt 1 | . . . 1 Operators 1 | . 1 . . Skim 3 | . 3 . . Fabricators . | . . . . Repair Stations . | . . . . Recycling Units 2 | . 2 . . Tunnel 2 | . 2 . . Scanalyzers . | . . . . Garrison Access . | . . . . Data Cores Recovered . | . . . . Used . | . . . . Hacking Detections 6 | . 5 . 1 Full Trace Events . | . . . . Feedback Events . | . . . . Feedback Blocked . | . . . . Robot Schematics Acquired . | . . . . Robots Built . | . . . . Authchips . | . . . . Time . | . . . . Total Robot Build Rating . | . . . . Part Schematics Acquired . | . . . . Parts Built . | . . . . Authchips . | . . . . Time . | . . . . Total Part Build Rating . | . . . . Part Studies Acquired 1 | . . . 1 Parts Repaired 2 | . 2 . . Time 58 | . 58 . . Parts Recycled . | . . . . Recycled Matter . | . . . . Retrieved Matter . | . . . . Retrieved Components . | . . . . Parts Scanalyzed . | . . . . Part Schematics Acquired . | . . . . Parts Damaged . | . . . . Bothacking | -11 -10 -10 -8 ------------ Run | Yrd Mat Sub Mat Used RIF Installer . | . . . . Robots Hacked . | . . . . Non-combat . | . . . . Combat . | . . . . Robot Hacks Applied . | . . . . Relay Couplers Released 3 | . . . 3 Machine Destruction 3 | . . . 3 Fabnet Peak Effective % . | . . . . Robots Rewired . | . . . . Allies Hacked . | . . . . Hacks Repelled . | . . . . Allies | -11 -10 -10 -8 -------- Run | Yrd Mat Sub Mat Total Allies 1 | . . . 1 Largest Group 1 | . . . 1 Highest-Rated Group 16 | . . . 16 Highest-Rated Ally 16 | . . . 16 Total Orders 4 | . . . 4 STAY 2 | . . . 2 FOLLOW 2 | . . . 2 Ally Attacks 27 | . . . 27 Total Damage 714 | . . . 714 Kills 8 | . . . 8 Allies Corrupted . | . . . . Allies Melted . | . . . . Borg Created 8 | . . . 8 Largest Collective 2 | . . . 2 Intel | -11 -10 -10 -8 ------- Run | Yrd Mat Sub Mat Active Infowar (turns) 4040 | 44 1676 1801 519 Seismic 4040 | 44 1676 1801 519 Robot Analysis Total . | . . . . Derelict Logs Recovered 1 | . . 1 . Drone Launches . | . . . . Drone Recoveries . | . . . . Exploration | -11 -10 -10 -8 ------------- Run | Yrd Mat Sub Mat Turns Passed 6827 | 117 1693 4466 551 Spaces Moved 3334 | 73 721 2307 233 Core 8 | 8 . . . Treads 1467 | . . 1234 233 Legs 1859 | 65 721 1073 . Wheels . | . . . . Hover . | . . . . Flight . | . . . . Fastest Speed 50 | 50 120 160 160 Average Speed 178 | 112 186 175 198 Slowest Speed 260 | 120 260 260 240 Overloaded Moves . | . . . . Propulsion Burnouts . | . . . . Robots Hopped . | . . . . Potential Cave-ins . | . . . . Cave-ins Triggered . | . . . . Exploration Rate (%) 53 | 4 86 97 25 Regions Visited 3 Branch Regions 1 Pre-discovered Areas 3 | . 2 1 . Known Exits Taken . | . . . . Unknown Exits Taken 3 | 1 1 1 . Scrap Searched 4 | . . 4 . Spaces Dug . | . . . . Terrain Destroyed 6 | . 6 . . Melee . | . . . . Projectile . | . . . . AOE 6 | . 6 . . Terrain Rammed . | . . . . Walls Destroyed . | . . . . Machines Disabled . | . . . . Actions | -11 -10 -10 -8 --------- Run | Yrd Mat Sub Mat Total 3989 | 90 938 2656 305 Wait 444 | . 106 289 49 Move 3331 | 72 720 2306 233 Hop . | . . . . Pick Up 32 | 4 13 7 8 Fast Attach 12 | 7 3 2 . Attach 6 | . 1 3 2 Detach 2 | . . . 2 Swap 19 | . 13 5 1 Drop 21 | . 9 11 1 Fire 105 | 7 65 33 . Melee . | . . . . Ram . | . . . . Kick 8 | . 8 . . Crush . | . . . . Escape Stasis . | . . . . Rewire 1 | . . . 1 Trap . | . . . . Miscellaneous 8 | . . . 8 Route ------- -11/Scrapyard -10/Materials (discovered 5 exits: [*Mat x3] / [*Min] / *Sub) -10/Subcaves (discovered 2 exits: *Mat x2) -8/Materials History --------- Turn | Location | Event 6 | -11/Scrapyard | Discovered new exit (range 14) 118 | -11/Scrapyard | Entered Materials 306 | -10/Materials | Build established: Mutant 388 | -10/Materials | Discovered new exit (range 9) 823 | -10/Materials | Discovered new exit (range 4) 1010 | -10/Materials | Repaired Lgt. EM Pulse Cannon 1038 | -10/Materials | Repaired Lgt. Armor Plating 1248 | -10/Materials | Discovered new exit (range 16) 1627 | -10/Materials | Discovered new exit (range 14) 1772 | -10/Materials | Discovered new exit (range 5) 1811 | -10/Materials | Entered Subcaves 1812 | -10/Subcaves | Approached by a straggling Scientist 2185 | -10/Subcaves | Visited Clippyterm 2191 | -10/Subcaves | Learned Research security intel 2191 | -10/Subcaves | Learned 40 Factory zone layouts 2243 | -10/Subcaves | Discovered new exit (range 6) 2384 | -10/Subcaves | Shifting Twisted Machinery released Battle Rifle 2426 | -10/Subcaves | Discovered new exit (range 11) 2434 | -10/Subcaves | Shifting Twisted Machinery released Scrap Shield 2434 | -10/Subcaves | Shifting Twisted Machinery released Sub. Optics 2713 | -10/Subcaves | Core integrity fell below 50% 2918 | -10/Subcaves | Disturbed a concealed Subdweller 4532 | -10/Subcaves | Visited 4L-MR0's lab 6141 | -10/Subcaves | Found Prototype Special Melee Weapon 6277 | -10/Subcaves | Entered Materials 6277 | -8/Materials | Evolved 4 slots: Utility x1, Weapon x3 6427 | -8/Materials | Central database locked down 6447 | -8/Materials | Identified 1B-0RG's Assimilator 6458 | -8/Materials | Assimilating Trooper 3a into Collective. 6471 | -8/Materials | Assimilating Soldier 3a into Collective. 6488 | -8/Materials | Assimilating Trooper 3b into Collective. 6560 | -8/Materials | Assimilating Rogue 3a into Collective. 6568 | -8/Materials | Assimilating Trooper 3c into Collective. 6577 | -8/Materials | Assimilating Trooper 3d into Collective. 6602 | -8/Materials | Lost 3 allies 6776 | -8/Materials | Assimilating Trooper 3e into Collective. 6791 | -8/Materials | Assimilating Trooper 3f into Collective. 6828 | -8/Materials | Self-destructed Last Messages --------------- 06776_ 1B-0RG's Assimilator injects Trooper 3e to begin assimilation process, ETC: 16. 06782_ Borg Trooper 3e destroyed. 06782_ Core damaged by loss of Borg Trooper 3e (-6). 06784_ Acquired 50 matter. 06791_ 1B-0RG's Assimilator injects Trooper 3f to begin assimilation process, ETC: 16. 06794_ Acquired 5 matter. 06796_ 1B-0RG's Assimilator destroyed. 06796_ Seismic Detector destroyed. 06796_ Critical hit (Blast). 06799_ U-05 Engineer builds a Wall. 06814_ Acquired Lgt. Treads+. 06817_ ALERT: Suspicious intruders detected, dispatching Specialist reinforcements to area. 06821_ K-01 Serf collects debris. 06821_ Lgt. Armor Plating destroyed. 06821_ Lgt. Treads+ blasted off. 06824_ K-01 Serf collects debris. Map ----- +----------------------------------------------------+ | ?????????????????????????????????????????????????? | | ?????????????????????????????????????????????????? | | ?????????????????????????????????????????????????? | | ?????????????????????????????????????????????????? | | ?????????????????????????????????????????????????? | | ?????????????????????????????????????????????????? | | ?????????????????????????????????????????????????? | | ?????????????????????????????????????????????????? | | ?????????????????????????????????????????????????? | | ?????????????????????????????????????????????????? | | ?????????????????????????????????????????????????? | | ?????????????????????????????????????????????????? | | ?????????????????????????????????????????????????? | | ?????????????????????????????????????????????????? | | ?????????????????????????????????????????????????? | | ?????????????????????????????????????????????????? | | ?????????????????????????????????????????????????? | | ?????????????????????????????????????????????????? | | ?????????????????????????????????????????????????? | | ?????????????????????????????????????????????????? | | ?????????????????????????????########????????????? | | ???????????????????????####### #????????????? | | ???????????????????????# ] # """ #????????????? | | ???????????????????##### % # "T" #????????????? | | ???????????????????+ m /g #????????????? | | ?????????????????????###%@ =# #????????????? | | ???????????????????????#a # #????????????? | | ???????????????????????##u H#####/###????????????? | | ????????????????????????# u%##??# #??????????????? | | ????????????????????????# ##### #### / ?? | | ????????????????????????# % / #??? | | ????????????????????????# ########## ! #??? | | ????????????????????????#= #########????????????? | | ????????????????????????#k% %= #????????????? | | ????????????????????????#% #????????????? | | ???????????##???????????# #????????????? | | ??????????? ???????????# #????????????? | | ?????????? ???????????# % #????????????? | | ?????????""" ???????????# #????????????? | | ???????? """ ???????????#o #????????????? | | ???????? """ ???????????# #????????????? | | ?????????? ?????????### #????????????? | | ????????####+########## !%* #######??????? | | ????????# % /?????? | | ????????# % %%! ########?????? | | ????????# = #????????????? | | ????????# [ #????????????? | | ????????# #????????????? | | ????????# #????????????? | | ????????# "" """ #????????????? | +----------------------------------------------------+ Best States ------------- Heat Dissipation 31 Energy Generation 14 Energy Capacity 280 Matter Stores 300 Matter Capacity 300 Sight Range 16 Terrain Scan Density 10 Armor Coverage 150 Evasion (%) 55 Recoil Reduction 2 Item Schematics ----------------- None Robot Schematics ------------------ None Fabricated ------------ Nothing Repaired ---------- Lgt. EM Pulse Cannon | 4% | -10/Materials Lgt. Armor Plating | 74% | -10/Materials Studied --------- Lgt. Treads | -8/Materials | Hacked Alien Tech Used ----------------- None Achievements -------------- I, Locutus Challenges ------------ None Game ------ Seed TacticalPotentialMatrix Manual? 0 Play Time 00:30:47 Cumulative 442.4 hours Start 2026.03.03 @ 22:03:34 End 2026.03.03 @ 23:06:52 Sessions 1 Manual Loads 0 Difficulty Rogue Special Mode None Game No. 288 Rogue 288 Adventurer 0 Explorer 0 Win Type - Total 29 Types 10/0/9/1/1/0/3/2/2/1 Lore% 84 Gallery% 78 Achievement% 73 Wizard Run 0 Options --------- Layout 1 ASCII 0 Keyboard 0 Movement Mouse Keybinds 0 Fullscreen 2 Font 24/Smallcaps Map View 50x35 Zoom Use 0% Tactical HUD 1 Map Filters NONE Filters NONE Steam 1 RUN: 506cd916-b018-4068-ae21-50c7600b811c